fUSD/lending_fUSD_20240826
["ID","MTS","AMOUNT","RATE_DAILY","PERIOD"]
[336011076,1724669445574,-500.0,0.00010989,2]
[336011077,1724669445583,-500.0,0.00010989,2]
[336011078,1724669445593,-500.0,0.00010989,2]
[336011080,1724669445603,-500.0,0.00010989,2]
[336011081,1724669445613,-811.89,0.00010989,2]
[336011082,1724669445622,-377.0,0.0001099,2]
[336011083,1724669445632,-1136.52653892,0.00010992,3]
[336011084,1724669445642,-150.0,0.00010992,2]
[336011085,1724669445652,-177.81575934,0.00010993,2]
[336011086,1724669445661,-500.0,0.00010995,2]
[336011087,1724669445671,-822.98,0.00010995,2]
[336011088,1724669445680,-3481.35,0.00010995,2]
[336011089,1724669445690,-981.29,0.00010995,2]
[336011090,1724669445700,-706.24,0.00010995,2]
[336011091,1724669445710,-809.53,0.00010995,2]
[336011092,1724669445720,-1136.63,0.00010995,2]
[336011093,1724669445729,-746.81,0.00010995,2]
[336011094,1724669445738,-1798.8900062,0.00010995,2]
[336011095,1724669445748,-2553.77,0.00010995,2]
[336011096,1724669445757,-500.0,0.00010995,2]
[336011097,1724669445767,-949.17,0.00010995,2]
[336011098,1724669445777,-177.81575934,0.00010996,2]
[336011099,1724669445787,-500.0,0.00010996,2]
[336011100,1724669445796,-500.0,0.00010996,2]
[336011101,1724669445806,-500.0,0.00010996,2]
[336011102,1724669445815,-500.0,0.00010996,2]
[336011103,1724669445824,-1036.21,0.00010996,2]
[336011104,1724669445834,-500.0,0.00010996,2]
[336011105,1724669445843,-500.0,0.00010996,2]
[336011106,1724669445852,-4215.91673072,0.00010996,2]
[336011107,1724669445862,-500.0,0.00010996,2]
[336011108,1724669445871,-574.94,0.00010996,2]
[336011109,1724669445880,-895.41,0.00010996,2]
[336011110,1724669445890,-500.0,0.00010996,2]
[336011111,1724669445899,-500.0,0.00010996,2]
[336011112,1724669445908,-504.07619865,0.00010996,2]
[336011113,1724669445918,-500.0,0.00010996,2]
[336011114,1724669445927,-518.71008729,0.00010996,2]
[336011115,1724669445936,-500.0,0.00010996,2]
[336011116,1724669445945,-537.12805056,0.00010996,2]
[336011117,1724669445955,-500.0,0.00010996,2]
[336011118,1724669445965,-500.0,0.00010996,2]
[336011119,1724669445975,-500.0,0.00010996,2]
[336011120,1724669445985,-500.0,0.00010996,2]
[336011121,1724669445995,-500.0,0.00010996,2]
[336011122,1724669446005,-522.95336499,0.00010996,2]
[336011123,1724669446015,-500.0,0.00010996,2]
[336011124,1724669446026,-500.0,0.00010996,2]
[336011125,1724669446036,-150.0,0.00010996,2]
[336011126,1724669446047,-1025.29,0.00010996,2]
[336011127,1724669446057,-632.74,0.00010996,2]
[336011128,1724669446067,-500.0,0.00010996,2]
[336011129,1724669446077,-700.51,0.00010996,2]
[336011130,1724669446087,-724.99,0.00010996,2]
[336011131,1724669446097,-500.0,0.00010996,2]
[336011132,1724669446107,-500.0,0.00010996,2]
[336011133,1724669446116,-500.0,0.00010996,2]
[336011134,1724669446126,-742.79,0.00010996,2]
[336011135,1724669446136,-500.0,0.00010996,2]
[336011136,1724669446147,-500.0,0.00010996,2]
[336011137,1724669446159,-500.0,0.00010996,2]
[336011138,1724669446169,-500.0,0.00010996,2]
[336011139,1724669446179,-500.0,0.00010996,2]
[336011140,1724669446191,-801.14,0.00010996,2]
[336011141,1724669446200,-553.53,0.00010996,2]
[336011142,1724669446210,-1067.49,0.00010996,2]
[336011143,1724669446221,-569.55297456,0.00010996,2]
[336011144,1724669446232,-500.0,0.00010996,2]
[336011145,1724669446242,-532.42140207,0.00010996,2]
[336011146,1724669446251,-5749.97,0.00010996,2]
[336011147,1724669446261,-500.0,0.00010996,2]
[336011148,1724669446271,-500.0,0.00010996,2]
[336011149,1724669446280,-500.0,0.00010996,2]
[336011150,1724669446290,-500.0,0.00010996,2]
[336011151,1724669446299,-500.0,0.00010996,2]
[336011152,1724669446309,-500.0,0.00010996,2]
[336011153,1724669446318,-501.02,0.00010996,2]
[336011154,1724669446328,-500.0,0.00010996,2]
[336011155,1724669446337,-744.49,0.00010996,2]
[336011156,1724669446346,-500.0,0.00010996,2]
[336011157,1724669446356,-500.0,0.00010996,2]
[336011158,1724669446366,-500.0,0.00010996,2]
[336011159,1724669446376,-500.0,0.00010996,2]
[336011160,1724669446386,-1114.22,0.00010996,2]
[336011161,1724669446396,-1211.52,0.00010996,2]
[336011162,1724669446406,-286.08838842,0.00010996,2]
[336011163,1724669446416,-882.6,0.00010996,2]
[336011164,1724669446425,-516.46960721,0.00010996,2]
[336011165,1724669446435,-828.84,0.00010996,2]
[336011166,1724669446445,-520.91219103,0.00010996,2]
[336011167,1724669446454,-500.0,0.00010996,2]
[336011168,1724669446464,-513.21646298,0.00010996,2]
[336011169,1724669446594,-791.42,0.00010996,2]
[336011170,1724669446604,-609.15,0.00010996,2]
[336011171,1724669446613,-645.81184985,0.00010996,2]
[336011172,1724669446623,-1127.37,0.00010996,2]
[336011173,1724669446632,-500.0,0.00010996,2]
[336011174,1724669446641,-3188.75,0.00010996,2]
[336011175,1724669446650,-500.0,0.00010996,2]
[336011176,1724669446659,-688.4,0.00010996,2]
[336011177,1724669446668,-500.0,0.00010996,2]
[336011178,1724669446678,-1233.42,0.00010996,2]
[336011179,1724669446686,-500.0,0.00010996,2]
[336011180,1724669446695,-500.0,0.00010996,2]
[336011181,1724669446704,-1240.62,0.00010996,2]
[336011182,1724669446713,-1011.13,0.00010996,2]
[336011183,1724669446726,-500.0,0.00010996,2]
[336011184,1724669446735,-569.29,0.00010996,2]
[336011185,1724669446744,-2901.87,0.00010996,2]
[336011186,1724669446753,-500.0,0.00010996,2]
[336011187,1724669446762,-500.0,0.00010996,2]
[336011188,1724669446771,-500.0,0.00010996,2]
[336011189,1724669446780,-633.83,0.00010996,2]
[336011190,1724669446789,-687.38,0.00010996,2]
[336011191,1724669446798,-2520.76,0.00010996,2]
[336011192,1724669446808,-500.0,0.00010996,2]
[336011193,1724669446818,-500.0,0.00010996,2]
[336011194,1724669446827,-1128.51,0.00010996,2]
[336011195,1724669446836,-500.0,0.00010996,2]
[336011196,1724669446846,-2964.13,0.00010996,2]
[336011197,1724669446855,-2239.23,0.00010996,2]
[336011198,1724669446864,-500.0,0.00010996,2]
[336011199,1724669446873,-576.71,0.00010996,2]
[336011200,1724669446882,-1610.82,0.00010996,2]
[336011201,1724669446891,-348.861001,0.00010996,2]
[336011202,1724669446900,-622.34,0.00010996,2]
[336011203,1724669446910,-1330.57,0.00010996,2]
[336011204,1724669446919,-634.21,0.00010996,2]
[336011205,1724669446927,-699.23,0.00010996,2]
[336011206,1724669446937,-183.70647,0.00010996,2]
[336011207,1724669446947,-500.0,0.00010996,2]
[336011208,1724669446957,-9470.421101,0.00010996,2]
[336011209,1724669446967,-500.0,0.00010996,2]
[336011210,1724669446976,-12039.817205,0.00010996,2]
[336011211,1724669446985,-707.46,0.00010996,2]
[336011212,1724669446994,-1029.85,0.00010996,2]
[336011213,1724669447004,-500.0,0.00010996,2]
[336011214,1724669447013,-780.08,0.00010996,2]
[336011215,1724669447022,-1318.58,0.00010996,2]
[336011216,1724669447031,-2275.42,0.00010996,2]
[336011217,1724669447040,-1043.67,0.00010996,2]
[336011218,1724669447050,-500.0,0.00010996,2]
[336011219,1724669447060,-1736.902809,0.00010996,2]
[336011220,1724669447069,-653.66,0.00010996,2]
[336011221,1724669447078,-500.0,0.00010996,2]
[336011222,1724669447087,-1341.53,0.00010996,2]
[336011223,1724669447096,-500.0,0.00010996,2]
[336011224,1724669447105,-1657.96,0.00010996,2]
[336011225,1724669447115,-976.21,0.00010996,2]
[336011226,1724669447124,-500.0,0.00010996,2]
[336011227,1724669447134,-500.0,0.00010996,2]
[336011228,1724669447146,-2677.79,0.00010996,2]
[336011229,1724669447158,-500.0,0.00010996,2]
[336011230,1724669447167,-974.69,0.00010996,2]
[336011231,1724669447177,-510.53,0.00010996,2]
[336011232,1724669447187,-790.59,0.00010996,2]
[336011233,1724669447197,-500.0,0.00010996,2]
[336011234,1724669447206,-500.0,0.00010996,2]
[336011235,1724669447217,-500.0,0.00010996,2]
[336011236,1724669447228,-1736.74,0.00010996,2]
[336011237,1724669447237,-1591.19,0.00010996,2]
[336011238,1724669447247,-500.0,0.00010996,2]
[336011239,1724669447257,-580.9,0.00010996,2]
[336011240,1724669447266,-2644.27,0.00010996,2]
[336011241,1724669447276,-500.0,0.00010996,2]
[336011242,1724669447289,-908.77,0.00010996,2]
[336011243,1724669447299,-510.39,0.00010996,2]
[336011244,1724669447310,-979.86,0.00010996,2]
[336011245,1724669447319,-2231.02,0.00010996,2]
[336011246,1724669447329,-1135.62,0.00010996,2]
[336011247,1724669447338,-902.94,0.00010996,2]
[336011248,1724669447348,-500.0,0.00010996,2]
[336011249,1724669447357,-1521.65,0.00010996,2]
[336011250,1724669447366,-2069.17,0.00010996,2]
[336011251,1724669447376,-500.0,0.00010996,2]
[336011252,1724669447386,-500.0,0.00010996,2]
[336011253,1724669447396,-809.56,0.00010996,2]
[336011254,1724669447406,-2031.15,0.00010996,2]
[336011255,1724669447415,-507.74872993,0.00010996,2]
[336011256,1724669447425,-854.6,0.00010996,2]
[336011257,1724669447434,-1905.23,0.00010996,2]
[336011258,1724669447443,-1886.69,0.00010996,2]
[336011259,1724669447453,-500.0,0.00010996,2]
[336011260,1724669447462,-500.0,0.00010996,2]
[336011261,1724669447473,-611.07,0.00010996,2]
[336011262,1724669447482,-500.0,0.00010996,2]
[336011263,1724669447491,-633.84,0.00010996,2]
[336011264,1724669447501,-757.14,0.00010996,2]
[336011265,1724669447510,-757.14,0.00010996,2]
[336011266,1724669447519,-757.14,0.00010996,2]
[336011267,1724669447528,-3243.53,0.00010996,2]
[336011268,1724669447537,-757.14,0.00010996,2]
[336011269,1724669447547,-757.14,0.00010996,2]
[336011270,1724669447556,-500.0,0.00010996,2]
[336011271,1724669447565,-500.0,0.00010996,2]
[336011272,1724669447574,-1506.72,0.00010996,2]
[336011273,1724669447583,-840.27,0.00010996,2]
[336011274,1724669447594,-500.0,0.00010996,2]
[336011275,1724669447604,-639.71,0.00010996,2]
[336011276,1724669447614,-952.21,0.00010996,2]
[336011277,1724669447624,-544.07,0.00010996,2]
[336011278,1724669447634,-952.21,0.00010996,2]
[336011279,1724669447643,-952.21,0.00010996,2]
[336011280,1724669447652,-952.21,0.00010996,2]
[336011281,1724669447661,-1947.16,0.00010996,2]
[336011282,1724669447671,-952.21,0.00010996,2]
[336011283,1724669447680,-500.0,0.00010996,2]
[336011284,1724669447690,-822.98,0.00010996,2]
[336011285,1724669447699,-822.98,0.00010996,2]
[336011286,1724669447708,-500.0,0.00010996,2]
[336011287,1724669447718,-675.34,0.00010996,2]
[336011288,1724669447727,-1042.16,0.00010996,2]
[336011289,1724669447737,-691.66,0.00010996,2]
[336011290,1724669447746,-691.66,0.00010996,2]
[336011291,1724669447755,-691.66,0.00010996,2]
[336011292,1724669447764,-691.66,0.00010996,2]
[336011293,1724669447773,-691.66,0.00010996,2]
[336011294,1724669447783,-1194.4,0.00010996,2]
[336011295,1724669447792,-3481.35,0.00010996,2]
[336011296,1724669447802,-518.41,0.00010996,2]
[336011297,1724669447811,-3481.35,0.00010996,2]
[336011298,1724669447819,-500.0,0.00010996,2]
[336011299,1724669447830,-922.65,0.00010996,2]
[336011300,1724669447840,-556.29948349,0.00010996,2]
[336011301,1724669447849,-1032.75,0.00010996,2]
[336011302,1724669447859,-1103.5,0.00010996,2]
[336011303,1724669447869,-1103.5,0.00010996,2]
[336011304,1724669447878,-500.0,0.00010996,2]
[336011305,1724669447887,-1103.5,0.00010996,2]
[336011306,1724669447896,-1103.5,0.00010996,2]
[336011307,1724669447905,-1103.5,0.00010996,2]
[336011308,1724669447915,-981.29,0.00010996,2]
[336011309,1724669447924,-981.29,0.00010996,2]
[336011310,1724669447933,-1079.71,0.00010996,2]
[336011311,1724669447942,-500.0,0.00010996,2]
[336011312,1724669447952,-2694.91,0.00010996,2]
[336011313,1724669447961,-1488.26,0.00010996,2]
[336011314,1724669447971,-1488.26,0.00010996,2]
[336011315,1724669447980,-1488.26,0.00010996,2]
[336011316,1724669447990,-1488.26,0.00010996,2]
[336011317,1724669447999,-858.07,0.00010996,2]
[336011318,1724669448008,-2251.23,0.00010996,2]
[336011319,1724669448018,-1488.26,0.00010996,2]
[336011320,1724669448027,-500.0,0.00010996,2]
[336011321,1724669448036,-500.0,0.00010996,2]
[336011322,1724669448046,-500.0,0.00010996,2]
[336011323,1724669448055,-1692.7,0.00010996,2]
[336011324,1724669448064,-500.0,0.00010996,2]
[336011325,1724669448073,-1767.53,0.00010996,2]
[336011326,1724669448083,-500.0,0.00010996,2]
[336011327,1724669448092,-1306.21,0.00010996,2]
[336011328,1724669448101,-1306.21,0.00010996,2]
[336011329,1724669448111,-1306.21,0.00010996,2]
[336011330,1724669448120,-500.0,0.00010996,2]
[336011331,1724669448130,-1306.21,0.00010996,2]
[336011332,1724669448141,-1306.21,0.00010996,2]
[336011333,1724669448152,-500.0,0.00010996,2]
[336011334,1724669448162,-706.24,0.00010996,2]
[336011335,1724669448171,-500.0,0.00010996,2]
[336011336,1724669448181,-706.24,0.00010996,2]
[336011337,1724669448192,-500.0,0.00010996,2]
[336011338,1724669448202,-1036.5,0.00010996,2]
[336011339,1724669448211,-1727.33,0.00010996,2]
[336011340,1724669448223,-500.0,0.00010996,2]
[336011341,1724669448232,-500.0,0.00010996,2]
[336011342,1724669448241,-500.0,0.00010996,2]
[336011343,1724669448251,-500.0,0.00010996,2]
[336011344,1724669448371,-500.0,0.00010996,2]
[336011345,1724669448380,-187.25081719,0.00010996,2]
[336011346,1724669448390,-809.53,0.00010996,2]
[336011347,1724669448399,-500.0,0.00010996,2]
[336011348,1724669448409,-809.53,0.00010996,2]
[336011349,1724669448418,-500.0,0.00010996,2]
[336011350,1724669448427,-4413.44,0.00010996,2]
[336011351,1724669448437,-500.0,0.00010996,2]
[336011352,1724669448446,-4413.44,0.00010996,2]
[336011353,1724669448455,-4413.44,0.00010996,2]
[336011354,1724669448465,-4413.44,0.00010996,2]
[336011355,1724669448475,-500.0,0.00010996,2]
[336011356,1724669448484,-4413.44,0.00010996,2]
[336011357,1724669448493,-1136.63,0.00010996,2]
[336011358,1724669448502,-500.0,0.00010996,2]
[336011359,1724669448512,-1136.63,0.00010996,2]
[336011360,1724669448521,-518.0284202,0.00010996,2]
[336011361,1724669448530,-500.0,0.00010996,2]
[336011362,1724669448540,-2028.9,0.00010996,2]
[336011363,1724669448549,-500.0,0.00010996,2]
[336011364,1724669448558,-546.05,0.00010996,2]
[336011365,1724669448568,-500.0,0.00010996,2]
[336011366,1724669448576,-546.05,0.00010996,2]
[336011367,1724669448585,-1041.02,0.00010996,2]
[336011368,1724669448595,-546.05,0.00010996,2]
[336011369,1724669448604,-546.05,0.00010996,2]
[336011370,1724669448614,-546.05,0.00010996,2]
[336011371,1724669448624,-500.0,0.00010996,2]
[336011372,1724669448633,-500.0,0.00010996,2]
[336011373,1724669448642,-500.0,0.00010996,2]
[336011374,1724669448652,-746.81,0.00010996,2]
[336011375,1724669448661,-746.81,0.00010996,2]
[336011376,1724669448671,-500.0,0.00010996,2]
[336011377,1724669448680,-500.0,0.00010996,2]
[336011378,1724669448689,-500.0,0.00010996,2]
[336011379,1724669448698,-660.8,0.00010996,2]
[336011380,1724669448708,-500.0,0.00010996,2]
[336011381,1724669448718,-500.0,0.00010996,2]
[336011382,1724669448727,-1532.79,0.00010996,2]
[336011383,1724669448736,-500.0,0.00010996,2]
[336011384,1724669448745,-500.0,0.00010996,2]
[336011385,1724669448754,-1060.49,0.00010996,2]
[336011386,1724669448764,-184.89183901,0.00010996,2]
[336011387,1724669448773,-1000.0,0.00010996,2]
[336011388,1724669448782,-505.52248449,0.00010996,2]
[336011389,1724669448791,-1293.44,0.00010996,2]
[336011390,1724669448801,-1293.44,0.00010996,2]
[336011391,1724669448810,-1293.44,0.00010996,2]
[336011392,1724669448819,-500.0,0.00010996,2]
[336011393,1724669448828,-500.0,0.00010996,2]
[336011394,1724669448838,-500.0,0.00010996,2]
[336011395,1724669448847,-1293.44,0.00010996,2]
[336011396,1724669448856,-1293.44,0.00010996,2]
[336011397,1724669448866,-2553.77,0.00010996,2]
[336011398,1724669448875,-500.0,0.00010996,2]
[336011399,1724669448885,-2553.77,0.00010996,2]
[336011400,1724669448894,-636.230921,0.00010996,2]
[336011401,1724669448903,-571.02,0.00010996,2]
[336011402,1724669448912,-738.52,0.00010996,2]
[336011403,1724669448921,-500.0,0.00010996,2]
[336011404,1724669448931,-500.0,0.00010996,2]
[336011405,1724669448940,-500.0,0.00010996,2]
[336011406,1724669448949,-935.47,0.00010996,2]
[336011407,1724669448959,-935.47,0.00010996,2]
[336011408,1724669448968,-500.0,0.00010996,2]
[336011409,1724669448977,-935.47,0.00010996,2]
[336011410,1724669448986,-935.47,0.00010996,2]
[336011411,1724669448995,-935.47,0.00010996,2]
[336011412,1724669449004,-500.0,0.00010996,2]
[336011413,1724669449014,-949.17,0.00010996,2]
[336011414,1724669449023,-500.0,0.00010996,2]
[336011415,1724669449032,-500.0,0.00010996,2]
[336011416,1724669449042,-949.17,0.00010996,2]
[336011417,1724669449051,-500.0,0.00010996,2]
[336011418,1724669449060,-500.0,0.00010996,2]
[336011419,1724669449069,-949.17,0.00010996,2]
[336011420,1724669449079,-500.0,0.00010996,2]
[336011421,1724669449089,-949.17,0.00010996,2]
[336011422,1724669449098,-500.0,0.00010996,2]
[336011423,1724669449108,-949.17,0.00010996,2]
[336011424,1724669449118,-949.17,0.00010996,2]
[336011425,1724669449127,-500.0,0.00010996,2]
[336011426,1724669449137,-949.17,0.00010996,2]
[336011427,1724669449146,-500.0,0.00010996,2]
[336011428,1724669449159,-500.0,0.00010996,2]
[336011429,1724669449169,-501.20704669,0.00010996,2]
[336011430,1724669449178,-811.89,0.00010996,2]
[336011431,1724669449190,-247.62511432,0.00010997,2]
[336011432,1724669449199,-1136.52653893,0.00010997,3]
[336011433,1724669449209,-500.0,0.00010997,2]
[336011434,1724669449219,-500.0,0.00010997,2]
[336011435,1724669449229,-500.0,0.00010997,2]
[336011436,1724669449239,-500.0,0.00010997,2]
[336011437,1724669449249,-500.0,0.00010997,2]
[336011438,1724669449258,-500.0,0.00010997,2]
[336011439,1724669449268,-500.0,0.00010997,2]
[336011440,1724669449277,-500.0,0.00010997,2]
[336011441,1724669449286,-500.0,0.00010997,2]
[336011442,1724669449296,-500.0,0.00010997,2]
[336011443,1724669449305,-1036.21,0.00010997,2]
[336011444,1724669449314,-1036.21,0.00010997,2]
[336011445,1724669449324,-500.0,0.00010997,2]
[336011446,1724669449333,-500.0,0.00010997,2]
[336011447,1724669449343,-500.0,0.00010997,2]
[336011448,1724669449352,-152.23894357,0.00010997,2]
[336011449,1724669449362,-500.0,0.00010997,2]
[336011450,1724669449371,-500.0,0.00010997,2]
[336011451,1724669449381,-500.0,0.00010997,2]
[336011452,1724669449390,-201.58895012,0.00010997,2]
[336011453,1724669449399,-500.0,0.00010997,2]
[336011454,1724669449409,-500.0,0.00010997,2]
[336011455,1724669449418,-500.0,0.00010997,2]
[336011456,1724669449428,-500.0,0.00010997,2]
[336011457,1724669449437,-500.0,0.00010997,2]
[336011458,1724669449446,-500.0,0.00010997,2]
[336011459,1724669449456,-500.0,0.00010997,2]
[336011460,1724669449465,-500.0,0.00010997,2]
[336011461,1724669449475,-500.0,0.00010997,2]
[336011462,1724669449484,-554.33870358,0.00010997,2]
[336011463,1724669449494,-500.0,0.00010997,2]
[336011464,1724669449503,-500.0,0.00010997,2]
[336011465,1724669449513,-500.0,0.00010997,2]
[336011466,1724669449522,-500.0,0.00010997,2]
[336011467,1724669449531,-518.14187881,0.00010997,2]
[336011468,1724669449541,-500.0,0.00010997,2]
[336011469,1724669449551,-500.0,0.00010997,2]
[336011470,1724669449561,-500.0,0.00010997,2]
[336011471,1724669449570,-500.0,0.00010997,2]
[336011472,1724669449580,-981.53,0.00010997,2]
[336011473,1724669449590,-981.53,0.00010997,2]
[336011474,1724669449599,-500.0,0.00010997,2]
[336011475,1724669449609,-319.35892499,0.00010997,2]
[336011476,1724669449619,-981.53,0.00010997,2]
[336011477,1724669449628,-981.53,0.00010997,2]
[336011478,1724669449639,-981.53,0.00010997,2]
[336011479,1724669449649,-500.0,0.00010997,2]
[336011480,1724669449658,-500.0,0.00010997,2]
[336011481,1724669449668,-500.0,0.00010997,2]
[336011482,1724669449678,-500.0,0.00010997,2]
[336011483,1724669449687,-500.0,0.00010997,2]
[336011484,1724669449697,-981.53,0.00010997,2]
[336011485,1724669449707,-500.0,0.00010997,2]
[336011486,1724669449716,-574.94,0.00010997,2]
[336011487,1724669449726,-574.94,0.00010997,2]
[336011488,1724669449736,-500.0,0.00010997,2]
[336011489,1724669449745,-895.41,0.00010997,2]
[336011490,1724669449757,-895.41,0.00010997,2]
[336011491,1724669449766,-500.0,0.00010997,2]
[336011492,1724669449776,-500.0,0.00010997,2]
[336011493,1724669449785,-500.0,0.00010997,2]
[336011494,1724669449795,-500.0,0.00010997,2]
[336011495,1724669449804,-500.0,0.00010997,2]
[336011496,1724669449813,-500.0,0.00010997,2]
[336011497,1724669449822,-500.0,0.00010997,2]
[336011498,1724669449832,-500.0,0.00010997,2]
[336011499,1724669449841,-500.0,0.00010997,2]
[336011500,1724669449852,-500.0,0.00010997,2]
[336011501,1724669449861,-500.0,0.00010997,2]
[336011502,1724669449871,-500.0,0.00010997,2]
[336011503,1724669449880,-500.0,0.00010997,2]
[336011504,1724669449890,-500.0,0.00010997,2]
[336011505,1724669449899,-500.0,0.00010997,2]
[336011506,1724669449908,-500.0,0.00010997,2]
[336011507,1724669449917,-500.0,0.00010997,2]
[336011508,1724669449927,-500.0,0.00010997,2]
[336011509,1724669449937,-501.56145246,0.00010997,2]
[336011510,1724669449946,-500.0,0.00010997,2]
[336011511,1724669449955,-500.0,0.00010997,2]
[336011512,1724669449964,-500.0,0.00010997,2]
[336011513,1724669449974,-500.0,0.00010997,2]
[336011514,1724669449984,-500.0,0.00010997,2]
[336011515,1724669449993,-500.0,0.00010997,2]
[336011516,1724669450002,-500.0,0.00010997,2]
[336011517,1724669450011,-500.0,0.00010997,2]
[336011518,1724669450021,-500.0,0.00010997,2]
[336011519,1724669450030,-500.0,0.00010997,2]
[336011520,1724669450039,-500.0,0.00010997,2]
[336011521,1724669450049,-500.0,0.00010997,2]
[336011522,1724669450058,-500.0,0.00010997,2]
[336011523,1724669450067,-500.0,0.00010997,2]
[336011524,1724669450076,-500.0,0.00010997,2]
[336011525,1724669450086,-500.0,0.00010997,2]
[336011526,1724669450095,-392.95174531,0.00010997,2]
[336011527,1724669450105,-500.0,0.00010997,2]
[336011528,1724669450114,-500.0,0.00010997,2]
[336011529,1724669450123,-500.0,0.00010997,2]
[336011530,1724669450133,-500.0,0.00010997,2]
[336011531,1724669450146,-500.0,0.00010997,2]
[336011532,1724669450155,-500.0,0.00010997,2]
[336011533,1724669450164,-500.0,0.00010997,2]
[336011534,1724669450173,-500.0,0.00010997,2]
[336011535,1724669450185,-500.0,0.00010997,2]
[336011536,1724669450194,-500.0,0.00010997,2]
[336011537,1724669450203,-500.0,0.00010997,2]
[336011538,1724669450212,-523.94072917,0.00010997,2]
[336011539,1724669450223,-500.0,0.00010997,2]
[336011540,1724669450232,-500.0,0.00010997,2]
[336011541,1724669450242,-500.0,0.00010997,2]
[336011542,1724669450251,-500.0,0.00010997,2]
[336011543,1724669450260,-546.33027875,0.00010997,2]
[336011544,1724669450270,-500.0,0.00010997,2]
[336011545,1724669450279,-500.0,0.00010997,2]
[336011546,1724669450288,-337.66883333,0.00010997,2]
[336011547,1724669450298,-500.0,0.00010997,2]
[336011548,1724669450307,-350.7910039,0.00010997,2]
[336011549,1724669450316,-500.0,0.00010997,2]
[336011550,1724669450326,-500.0,0.00010997,2]
[336011551,1724669450335,-500.0,0.00010997,2]
[336011552,1724669450345,-527.45643433,0.00010997,2]
[336011553,1724669450354,-500.0,0.00010997,2]
[336011554,1724669450364,-500.0,0.00010997,2]
[336011555,1724669450372,-500.0,0.00010997,2]
[336011556,1724669450382,-500.0,0.00010997,2]
[336011557,1724669450391,-516.22298323,0.00010997,2]
[336011558,1724669450400,-500.0,0.00010997,2]
[336011559,1724669450410,-500.0,0.00010997,2]
[336011560,1724669450419,-150.0,0.00010997,2]
[336011561,1724669450428,-150.0,0.00010997,2]
[336011562,1724669450437,-500.0,0.00010997,2]
[336011563,1724669450447,-526.00622534,0.00010997,2]
[336011564,1724669450456,-500.0,0.00010997,2]
[336011565,1724669450465,-504.75,0.00010997,2]
[336011566,1724669450477,-1025.29,0.00010997,2]
[336011567,1724669450596,-1025.29,0.00010997,2]
[336011568,1724669450619,-500.0,0.00010997,2]
[336011569,1724669450628,-522.6351597,0.00010997,2]
[336011570,1724669450638,-500.0,0.00010997,2]
[336011571,1724669450647,-500.0,0.00010997,2]
[336011572,1724669450656,-500.0,0.00010997,2]
[336011573,1724669450665,-500.0,0.00010997,2]
[336011574,1724669450674,-500.0,0.00010997,2]
[336011575,1724669450683,-500.0,0.00010997,2]
[336011576,1724669450692,-506.77489429,0.00010997,2]